bitfinex-derivatives/quotes_BNBF0:USTF0_20250523
["timestamp","ask_amount","ask_price","bid_price","bid_amount"]
[1748021673334,1.65074378,669.47,668.61,1.11002746]
[1748021673335,1.0671989,669.45,668.61,1.11002746]
[1748021673631,1.0671989,669.44,668.61,1.11002746]
[1748021673831,1.65074378,669.47,668.61,1.11002746]
[1748021674029,1.06714249,669.46,668.61,1.11002746]
[1748021674233,1.06714249,669.45,668.61,1.11002746]
[1748021674435,1.65074378,669.47,668.65,1.11002746]
[1748021674436,1.06714249,669.44,668.65,1.11002746]
[1748021674633,1.65074378,669.47,668.65,1.11002746]
[1748021674838,1.06708524,669.46,668.65,1.11002746]
[1748021675039,1.06708524,669.45,668.65,1.11002746]
[1748021675239,1.06708524,669.44,668.65,1.11002746]
[1748021675439,1.65074378,669.47,668.65,1.11002746]
[1748021675635,1.36578466,669.46,668.65,1.11002746]
[1748021675838,1.06703642,669.45,668.65,1.11002746]
[1748021676034,1.06703642,669.44,668.65,1.11002746]
[1748021676236,1.06704267,669.43,668.65,1.11002746]
[1748021676436,0.29874824,669.46,668.65,1.11002746]
[1748021676639,1.06698595,669.45,668.64,1.11002746]
[1748021676934,1.06698595,669.44,668.64,1.11002746]
[1748021677135,0.29874824,669.46,668.64,1.11002746]
[1748021677336,1.06702282,669.45,668.64,1.11002746]
[1748021677536,1.06702282,669.44,668.64,1.11002746]
[1748021677841,1.06694608,669.43,668.64,1.11002746]
[1748021678038,0.29875717,669.44,668.64,1.11002746]
[1748021678242,1.06699304,669.43,668.64,1.11002746]
[1748021678438,0.29875717,669.44,668.64,1.11002746]
[1748021678638,1.06692606,669.43,668.64,1.11002746]
[1748021678838,0.29875717,669.44,668.64,1.11002746]
[1748021679037,1.06692735,669.43,668.64,1.11002746]
[1748021679241,0.29875717,669.44,668.64,1.11002746]
[1748021679538,1.06691622,669.43,668.6,1.11002746]
[1748021679739,0.29875717,669.44,668.6,1.11002746]
[1748021679942,1.06691897,669.43,668.6,1.11002746]
[1748021680138,1.06691897,669.42,668.6,1.11002746]
[1748021680337,1.06691897,669.41,668.6,1.11002746]
[1748021680542,1.06691897,669.4,668.6,1.11002746]
[1748021680737,0.29875717,669.44,668.6,1.11002746]
[1748021680940,1.06692598,669.43,668.6,1.11002746]
[1748021681136,1.06692598,669.42,668.6,1.11002746]
[1748021681343,1.06692598,669.41,668.6,1.11002746]
[1748021681543,0.29875717,669.44,668.6,1.11002746]
[1748021681846,1.06695422,669.43,668.64,1.11002746]
[1748021682145,1.06695422,669.42,668.64,1.11002746]
[1748021682445,1.06695422,669.41,668.64,1.11002746]
[1748021682646,1.06695422,669.4,668.64,1.11002746]
[1748021682945,1.06695422,669.39,668.64,1.11002746]
[1748021683146,0.29875717,669.44,668.64,1.11002746]
[1748021683545,1.06706707,669.43,668.64,1.11002746]
[1748021683746,1.06706707,669.42,668.64,1.11002746]
[1748021683947,1.06706707,669.41,668.64,1.11002746]
[1748021684141,1.83602114,669.4,668.64,1.11002746]
[1748021684344,1.8360256,669.39,668.64,1.11002746]
[1748021684543,1.83603006,669.38,668.64,1.11002746]
[1748021684849,1.83603453,669.37,668.63,1.11002746]
[1748021685148,1.83611281,669.36,668.63,1.11002746]
[1748021685443,1.83611728,669.35,668.63,1.11002746]
[1748021685648,1.36594417,669.34,668.63,1.11002746]
[1748021685848,2.75225703,669.33,668.63,1.11002746]
[1748021686048,1.53726904,669.32,668.63,1.11002746]
[1748021686248,1.53726904,669.31,668.63,1.11002746]
[1748021686448,1.06714237,669.3,668.63,1.11002746]
[1748021686644,1.06714237,669.29,668.63,1.11002746]
[1748021686845,1.215,669.33,668.63,1.11002746]
[1748021687044,1.83580498,669.32,668.63,1.11002746]
[1748021687243,1.83580944,669.31,668.63,1.11002746]
[1748021687446,1.3657321,669.3,668.63,1.11002746]
[1748021687649,1.36573656,669.29,668.63,1.11002746]
[1748021687850,1.36574103,669.28,668.42,1.11002746]
[1748021688148,1.36574549,669.27,668.42,1.11002746]
[1748021688349,1.36574996,669.26,668.42,1.11002746]
[1748021688549,0.29883752,669.26,668.42,1.11002746]
[1748021690246,1.06698121,669.25,668.42,1.11002746]
[1748021690444,0.29883752,669.26,668.42,1.11002746]
[1748021690648,1.06683951,669.25,668.42,1.11002746]
[1748021690852,0.29883752,669.26,668.37,1.11002746]
[1748021691049,1.06684435,669.25,668.37,1.11002746]
[1748021691252,0.29883752,669.26,668.37,1.11002746]
[1748021691451,1.06686857,669.25,668.37,1.11002746]
[1748021691652,0.29883752,669.26,668.37,1.11002746]
[1748021692255,1.06686336,669.25,668.37,1.11002746]
[1748021692554,1.06686336,669.24,668.37,1.11002746]
[1748021692753,0.29883752,669.26,668.37,1.11002746]
[1748021692951,1.06692874,669.25,668.37,1.11002746]
[1748021693152,0.29883752,669.26,668.35,1.11002746]
[1748021693350,1.06709122,669.25,668.35,1.11002746]
[1748021693650,0.29883752,669.26,668.35,1.11002746]
[1748021695257,0.29883752,669.26,668.38,1.11002746]
[1748021696153,1.06749453,669.25,668.38,1.11002746]
[1748021696457,0.29883752,669.26,668.38,1.11002746]
[1748021697058,0.29883752,669.26,668.45,1.11002746]
[1748021698058,0.29883752,669.26,668.05,2.22005492]
[1748021698258,0.29883752,669.26,667.37,0.26010621]
[1748021698460,0.29883752,669.26,667.39,0.29967485]
[1748021700565,0.29883752,669.26,668.52,1.11273881]
[1748021703166,0.29883752,669.26,668.55,1.11273881]
[1748021705065,0.29883752,669.26,668.56,1.11273881]
[1748021706869,0.29883752,669.26,668.63,1.11273881]
[1748021707570,1.282,669.25,668.63,1.11273881]
[1748021707769,3.106,669.25,668.63,1.11273881]
[1748021715575,1.07084764,669.24,668.63,1.11273881]
[1748021715773,3.106,669.25,668.63,1.11273881]
[1748021715976,1.07085693,669.24,668.68,1.11273881]
[1748021716177,3.106,669.25,668.68,1.11273881]
[1748021716376,1.07085693,669.24,668.68,1.11273881]
[1748021716580,1.07085693,669.23,668.68,1.11273881]
[1748021716779,3.106,669.25,668.68,1.11273881]
[1748021716978,1.07102919,669.24,668.68,1.11273881]
[1748021717181,1.07102919,669.23,668.68,1.11273881]
[1748021717381,3.106,669.25,668.68,1.11273881]
[1748021717583,1.07113838,669.24,668.68,1.11273881]
[1748021717782,1.07113838,669.23,668.68,1.11273881]
[1748021717982,3.106,669.25,668.68,1.11273881]
[1748021718182,1.07113901,669.24,668.69,1.11273881]
[1748021718483,1.07113901,669.23,668.69,1.11273881]
[1748021718677,1.824,669.25,668.69,1.11273881]
[1748021718879,1.07122819,669.24,668.69,1.11273881]
[1748021719080,1.07122819,669.23,668.69,1.11273881]
[1748021719279,1.07132421,669.22,668.69,1.11273881]
[1748021719477,1.824,669.25,668.69,1.11273881]
[1748021719677,1.07132421,669.24,668.69,1.11273881]
[1748021719879,1.07132421,669.23,668.69,1.11273881]
[1748021720080,1.824,669.25,668.69,1.11273881]
[1748021720279,1.464,669.22,668.69,1.11273881]
[1748021721786,1.464,669.22,668.66,1.11273881]
[1748021722285,1.07164356,669.21,668.66,1.11273881]
[1748021722482,1.464,669.22,668.66,1.11273881]
[1748021722683,1.0716691,669.21,668.66,1.11273881]
[1748021722889,1.464,669.22,668.66,1.11273881]
[1748021723183,1.0716691,669.21,668.66,1.11273881]
[1748021723387,1.464,669.22,668.66,1.11273881]
[1748021723687,1.07178391,669.21,668.66,1.11273881]
[1748021723888,1.464,669.22,668.66,1.11273881]
[1748021724384,1.464,669.22,668.72,1.11273881]
[1748021725384,1.857,669.21,668.72,1.11273881]
[1748021726389,1.857,669.21,668.78,1.11273881]
[1748021728888,1.857,669.21,668.79,1.11273881]
[1748021731392,1.857,669.21,668.82,1.11273881]
[1748021734092,1.857,669.21,668.84,1.11273881]
[1748021737097,1.857,669.21,668.78,1.11273881]
[1748021737296,1.118,669.2,668.78,1.11273881]
[1748021739097,1.118,669.2,668.77,1.11273881]
[1748021743999,1.118,669.2,668.76,1.11273881]
[1748021746598,1.118,669.2,668.61,1.48365175]
[1748021746599,1.118,669.2,668.77,1.11273881]
[1748021748298,1.886,669.19,668.77,1.11273881]
[1748021748500,1.886,669.19,668.76,1.11273881]
[1748021752305,1.886,669.19,668.77,1.11273881]
[1748021755505,1.886,669.19,668.8,1.11273881]
[1748021761611,1.886,669.19,668.84,1.11273881]
[1748021764212,1.886,669.19,668.8,1.11273881]
[1748021766414,1.886,669.19,668.76,1.11273881]
[1748021767314,1.0714283,669.18,668.76,1.11273881]
[1748021768014,1.0714283,669.17,668.76,1.11273881]
[1748021768510,1.0714283,669.16,668.76,1.11273881]
[1748021768714,1.886,669.19,668.76,1.11273881]
[1748021768715,1.0714283,669.15,668.76,1.11273881]
[1748021768916,1.0714283,669.14,668.61,1.11273881]
[1748021769113,1.0714283,669.13,668.61,1.11273881]
[1748021769312,1.886,669.19,668.61,1.11273881]
[1748021769511,1.54660757,669.18,668.61,1.11273881]
[1748021769714,1.54660757,669.17,668.61,1.11273881]
[1748021769915,1.886,669.19,668.61,1.11273881]
[1748021769916,1.07113372,669.16,668.61,1.11273881]
[1748021770215,1.07113372,669.15,668.61,1.11273881]
[1748021770416,1.07113372,669.14,668.61,1.11273881]
[1748021770612,1.07113372,669.13,668.61,1.11273881]
[1748021770813,1.07113372,669.12,668.61,1.11273881]
[1748021771016,1.886,669.19,668.61,1.11273881]
[1748021771216,1.54592562,669.18,668.61,1.11273881]
[1748021771413,1.54592562,669.17,668.61,1.11273881]
[1748021771718,1.886,669.19,667.81,3.70912938]
[1748021771719,1.54592562,669.16,668.58,1.11273881]
[1748021771915,1.07083786,669.15,668.58,1.11273881]
[1748021772116,1.07086478,669.14,668.58,1.11273881]
[1748021772416,1.07086478,669.13,668.58,1.11273881]
[1748021772612,1.07063964,669.12,668.58,1.11273881]
[1748021772818,1.07061275,669.11,668.58,1.11273881]
[1748021773013,1.07061404,669.1,668.58,1.11273881]
[1748021773218,1.886,669.19,668.58,1.11273881]
[1748021773518,1.5456186,669.18,668.58,1.11273881]
[1748021773818,1.54561795,669.17,668.58,1.11273881]
[1748021774118,1.54561795,669.16,668.58,1.11273881]
[1748021774418,1.54561795,669.15,668.51,1.11273881]
[1748021774719,1.54536025,669.14,668.51,1.11273881]
[1748021774919,1.54536025,669.13,668.51,1.11273881]
[1748021775117,1.54536025,669.12,668.51,1.11273881]
[1748021775421,1.0703535,669.11,668.51,1.11273881]
[1748021775623,1.0703535,669.1,668.43,1.11273881]
[1748021775816,1.54515452,669.09,668.43,1.11273881]
[1748021776116,1.54515452,669.08,668.43,1.11273881]
[1748021776318,1.54453401,669.07,668.43,1.11273881]
[1748021776518,1.06973299,669.06,668.43,1.11273881]
[1748021776719,1.06973299,669.05,668.43,1.11273881]
[1748021776921,1.06973299,669.04,668.43,1.11273881]
[1748021777122,1.886,669.19,668.43,1.11273881]
[1748021777320,1.84264333,669.18,668.43,1.11273881]
[1748021777524,1.8426478,669.17,668.43,1.11273881]
[1748021777726,1.84265227,669.16,668.43,1.11273881]
[1748021777926,1.84265673,669.15,668.43,1.11273881]
[1748021778132,1.84265673,669.15,667.54,5.19278113]
[1748021778133,0.29889111,669.14,668.32,1.11273881]
[1748021778325,1.54325668,669.13,668.32,1.11273881]
[1748021778525,1.54325668,669.12,668.32,1.11273881]
[1748021778728,1.54325668,669.11,668.32,1.11273881]
[1748021778930,1.54325668,669.1,668.32,1.11273881]
[1748021779130,1.0689668,669.09,668.32,1.11273881]
[1748021779329,1.0689668,669.08,668.32,1.11273881]
[1748021779629,1.0689668,669.07,668.32,1.11273881]
[1748021779830,1.0689668,669.06,668.32,1.11273881]
[1748021780026,0.29889558,669.13,668.32,1.11273881]
[1748021780224,1.54226773,669.12,668.32,1.11273881]
[1748021780428,1.54226773,669.11,668.32,1.11273881]
[1748021780629,1.54226773,669.1,668.26,1.11273881]
[1748021780927,1.06828094,669.09,668.26,1.11273881]
[1748021781125,1.06828094,669.08,668.26,1.11273881]
[1748021781328,1.06828094,669.07,668.26,1.11273881]
[1748021781529,1.06818314,669.06,668.26,1.11273881]
[1748021781829,0.29889558,669.13,668.26,1.11273881]
[1748021782030,1.5421196,669.12,668.26,1.11273881]
[1748021782225,1.5421196,669.11,668.26,1.11273881]
[1748021782426,1.06817956,669.1,668.26,1.11273881]
[1748021782631,1.06817956,669.09,668.26,1.11273881]
[1748021782826,1.06817956,669.08,668.26,1.11273881]
[1748021783024,1.048,669.11,668.26,1.11273881]
[1748021783229,1.06774324,669.1,668.26,1.11273881]
[1748021783432,1.048,669.11,668.26,1.11273881]
[1748021783433,1.06774324,669.09,668.26,1.11273881]
[1748021783731,1.06774324,669.08,668.26,1.11273881]
[1748021783924,2.19274324,669.07,668.26,1.11273881]
[1748021784125,1.125,669.07,668.26,1.11273881]
[1748021786134,1.125,669.07,668.29,1.11273881]
[1748021790330,1.125,669.07,668.28,1.11273881]
[1748021792842,1.125,669.07,668.26,1.11273881]
[1748021795238,1.125,669.07,668.25,1.11273881]
[1748021801344,1.125,669.07,668.29,1.11273881]
[1748021804245,1.125,669.07,668.34,1.11273881]
[1748021806847,1.125,669.07,668.35,1.11273881]
[1748021807042,0.29889558,669.13,668.35,1.11273881]
[1748021807247,1.06733831,669.12,668.35,1.11273881]
[1748021807446,0.29889558,669.13,668.35,1.11273881]
[1748021807647,1.06743919,669.12,668.35,1.11273881]
[1748021807846,0.29889558,669.13,668.35,1.11273881]
[1748021808048,1.06743669,669.12,668.35,1.11273881]
[1748021808249,1.113,669.12,668.35,1.11273881]
[1748021808451,1.0676043,669.11,668.35,1.11273881]
[1748021808650,1.113,669.12,668.35,1.11273881]
[1748021808849,1.06761577,669.11,668.35,1.11273881]
[1748021809046,1.06767135,669.1,668.35,1.11273881]
[1748021809244,1.41190004,669.12,668.35,1.11273881]
[1748021809447,1.06780589,669.11,668.26,1.11273881]
[1748021809645,1.06780589,669.1,668.26,1.11273881]
[1748021809848,1.231,669.1,668.26,1.11273881]
[1748021810249,1.06789224,669.09,668.26,1.11273881]
[1748021810548,1.231,669.1,668.26,1.11273881]
[1748021810749,1.0678579,669.09,668.26,1.11273881]
[1748021811049,1.0678579,669.08,668.26,1.11273881]
[1748021811243,1.0678579,669.07,668.26,1.11273881]
[1748021811447,1.231,669.1,668.26,1.11273881]
[1748021811448,1.06802921,669.06,668.26,1.11273881]
[1748021811750,1.06802921,669.05,668.26,1.11273881]
[1748021811946,1.231,669.1,668.19,1.11273881]
[1748021812150,1.54167108,669.09,668.19,1.11273881]
[1748021812450,1.06799724,669.08,668.19,1.11273881]
[1748021812647,1.06799724,669.07,668.19,1.11273881]
[1748021812845,1.06799724,669.06,668.19,1.11273881]
[1748021813048,1.06799724,669.05,668.19,1.11273881]
[1748021813249,1.06799724,669.04,668.19,1.11273881]
[1748021813447,1.52990898,669.1,668.19,1.11273881]
[1748021813653,1.54235543,669.09,668.19,1.11273881]
[1748021813851,1.54235543,669.08,668.19,1.11273881]
[1748021814152,1.06848011,669.07,668.19,1.11273881]
[1748021814348,1.06848011,669.06,668.19,1.11273881]
[1748021814548,1.06848011,669.05,668.19,1.11273881]
[1748021814751,1.06848011,669.04,668.2,1.11273881]
[1748021814951,1.52990898,669.1,668.2,1.11273881]
[1748021815148,1.54236136,669.09,668.2,1.11273881]
[1748021815352,1.54249401,669.08,668.2,1.11273881]
[1748021815547,1.06847716,669.07,668.2,1.11273881]
[1748021815754,1.06847716,669.06,668.2,1.11273881]
[1748021815948,1.06847716,669.05,668.2,1.11273881]
[1748021816152,1.06847716,669.04,668.2,1.11273881]
[1748021816355,1.06847716,669.03,668.2,1.11273881]
[1748021816553,1.52990898,669.1,668.2,1.11273881]
[1748021816755,1.54355655,669.09,668.2,1.11273881]
[1748021816954,1.54355655,669.08,668.2,1.11273881]
[1748021817253,1.54356885,669.07,668.2,1.11273881]
[1748021817448,1.54356885,669.06,668.2,1.11273881]
[1748021817653,1.54356885,669.05,668.29,1.11273881]
[1748021817853,1.06934398,669.04,668.29,1.11273881]
[1748021818053,1.06934398,669.03,668.29,1.11273881]
[1748021818354,1.06934398,669.02,668.29,1.11273881]
[1748021818653,1.06934398,669.01,668.29,1.11273881]
[1748021818855,1.06934398,669.0,668.29,1.11273881]
[1748021819054,1.52990898,669.1,668.29,1.11273881]
[1748021819254,1.54508716,669.09,668.29,1.11273881]
[1748021819454,1.54508716,669.08,668.29,1.11273881]
[1748021819653,1.54508716,669.07,668.29,1.11273881]
[1748021819855,1.54508716,669.06,668.31,1.11273881]
[1748021820153,1.54508716,669.05,668.31,1.11273881]
[1748021820453,1.54508716,669.04,668.31,1.11273881]
[1748021820650,1.54508716,669.03,668.31,1.11273881]
[1748021820853,1.54508716,669.02,668.31,1.11273881]
[1748021821050,1.54508716,669.01,668.31,1.11273881]
[1748021821251,1.54508716,669.0,668.31,1.11273881]
[1748021821551,1.54531922,668.99,668.31,1.11273881]
[1748021821753,1.07039523,668.98,668.31,1.11273881]
[1748021821953,1.11705018,669.09,668.31,1.11273881]
[1748021821954,1.07039523,668.97,668.31,1.11273881]
[1748021822154,1.07039523,668.96,668.31,1.11273881]
[1748021822457,1.07039523,668.95,668.31,1.11273881]
[1748021822756,1.07039523,668.94,668.32,1.11273881]
[1748021822955,1.07039523,668.93,668.32,1.11273881]
[1748021823156,1.07258524,668.92,668.32,1.11273881]
[1748021823358,1.07258524,668.91,668.32,1.11273881]
[1748021823555,1.07258524,668.9,668.32,1.11273881]
[1748021823760,1.11705018,669.03,668.32,1.11273881]
[1748021823957,1.54825681,669.02,668.32,1.11273881]
[1748021824254,1.54825681,669.01,668.32,1.11273881]
[1748021824455,1.54825681,669.0,668.32,1.11273881]
[1748021824655,1.54825681,668.99,668.32,1.11273881]
[1748021824861,1.54825681,668.98,668.32,1.11273881]
[1748021825059,1.54825681,668.97,668.34,1.11273881]
[1748021825260,1.54825681,668.96,668.34,1.11273881]
[1748021825455,1.54864115,668.95,668.34,1.11273881]
[1748021825658,1.54864115,668.94,668.34,1.11273881]
[1748021825858,1.54864115,668.93,668.34,1.11273881]
[1748021826060,1.54864115,668.92,668.34,1.11273881]
[1748021826256,3.03264115,668.91,668.34,1.11273881]
[1748021826461,1.54864115,668.9,668.34,1.11273881]
[1748021826663,1.0725859,668.89,668.34,1.11273881]
[1748021826859,1.0725859,668.88,668.34,1.11273881]
[1748021827158,1.0725859,668.87,668.34,1.11273881]
[1748021827364,1.0725859,668.86,668.34,1.11273881]
[1748021827557,1.484,668.91,668.34,1.11273881]
[1748021827758,1.54978243,668.9,668.34,1.11273881]
[1748021827958,1.07365055,668.89,668.35,1.11273881]
[1748021828162,1.07365055,668.88,668.35,1.11273881]
[1748021828458,1.07365055,668.87,668.35,1.11273881]
[1748021828664,1.07372768,668.86,668.35,1.11273881]
[1748021828860,1.484,668.91,668.35,1.11273881]
[1748021829064,1.54989104,668.9,668.35,1.11273881]
[1748021829261,1.07373382,668.89,668.35,1.11273881]
[1748021829465,1.07373382,668.88,668.35,1.11273881]
[1748021829665,1.07373382,668.87,668.35,1.11273881]
[1748021829860,1.07373382,668.86,668.35,1.11273881]
[1748021830064,1.484,668.91,668.35,1.11273881]
[1748021830259,1.5503926,668.9,668.35,1.11273881]
[1748021830460,1.5503926,668.89,668.35,1.11273881]
[1748021830667,1.484,668.91,668.35,1.11273881]
[1748021830865,1.07405894,668.9,668.35,1.11273881]
[1748021831167,1.07423574,668.89,668.35,1.11273881]
[1748021831468,1.484,668.91,668.36,1.11273881]
[1748021831661,1.07421126,668.9,668.36,1.11273881]
[1748021831862,1.07421126,668.89,668.36,1.11273881]
[1748021832063,1.484,668.91,668.36,1.11273881]
[1748021832259,1.07421666,668.9,668.36,1.11273881]
[1748021832464,1.07421666,668.89,668.36,1.11273881]
[1748021832665,1.07438045,668.88,668.36,1.11273881]
[1748021832860,1.484,668.91,668.36,1.11273881]
[1748021833065,1.07438045,668.9,668.36,1.11273881]
[1748021833267,1.07438045,668.89,668.36,1.11273881]
[1748021833465,1.07438045,668.88,668.36,1.11273881]
[1748021833667,1.484,668.91,668.36,1.11273881]
[1748021833862,1.07434351,668.9,668.36,1.11273881]
[1748021834064,1.07434351,668.89,668.36,1.11273881]
[1748021834263,1.07434351,668.88,668.36,1.11273881]
[1748021834465,1.484,668.91,668.38,1.11273881]
[1748021834663,1.07447104,668.9,668.38,1.11273881]
[1748021834867,1.07447104,668.89,668.38,1.11273881]
[1748021835068,1.07451602,668.88,668.38,1.11273881]
[1748021835261,1.484,668.91,668.38,1.11273881]
[1748021835465,1.07452578,668.9,668.38,1.11273881]
[1748021835664,1.07452578,668.89,668.38,1.11273881]
[1748021835864,1.07452578,668.88,668.38,1.11273881]
[1748021836069,1.484,668.91,668.38,1.11273881]
[1748021836269,1.07448013,668.9,668.38,1.11273881]
[1748021836469,1.11705018,668.88,668.44,1.11273881]
[1748021836867,1.865,668.87,668.44,1.11273881]
[1748021837970,1.865,668.87,668.4,1.11273881]
[1748021838766,1.07437537,668.86,668.4,1.11273881]
[1748021838973,1.07441486,668.85,668.4,1.11273881]
[1748021839171,1.865,668.87,668.4,1.11273881]
[1748021839373,1.07441305,668.86,668.4,1.11273881]
[1748021839669,1.07434972,668.85,668.4,1.11273881]
[1748021839872,1.07435204,668.84,668.4,1.11273881]
[1748021840072,1.07441477,668.83,668.4,1.11273881]
[1748021840272,1.07441477,668.82,668.4,1.11273881]
[1748021840474,1.07441477,668.81,668.4,1.11273881]
[1748021840768,1.55077798,668.8,668.4,1.11273881]
[1748021840973,1.07441477,668.79,668.3,1.11273881]
[1748021841271,1.07441477,668.78,668.3,1.11273881]
[1748021841471,1.07441477,668.77,668.3,1.11273881]
[1748021841673,1.11705018,668.86,668.3,1.11273881]
[1748021841869,1.55050205,668.85,668.3,1.11273881]
[1748021842074,1.55050205,668.84,668.3,1.11273881]
[1748021842273,1.55050205,668.83,668.3,1.11273881]
[1748021842470,1.55050205,668.82,668.3,1.11273881]
[1748021842669,1.55050205,668.81,668.3,1.11273881]
[1748021842870,1.07421564,668.8,668.3,1.11273881]
[1748021843074,1.07421564,668.79,668.3,1.11273881]
[1748021843269,1.07421564,668.78,668.3,1.11273881]
[1748021843472,1.11705018,668.84,668.3,1.11273881]
[1748021843672,1.5501396,668.83,668.3,1.11273881]
[1748021843869,1.5501396,668.82,668.3,1.11273881]
[1748021844073,1.07396456,668.81,668.3,1.11273881]
[1748021844277,1.07396456,668.8,668.3,1.11273881]
[1748021844578,1.07396456,668.79,668.3,1.11273881]
[1748021844876,1.11705018,668.84,668.3,1.11273881]
[1748021845078,1.54997967,668.83,668.3,1.11273881]
[1748021845271,1.0738543,668.82,668.3,1.11273881]
[1748021845472,1.0738543,668.81,668.3,1.11273881]
[1748021845674,1.11705018,668.84,668.3,1.11273881]
[1748021845974,1.0732212,668.83,668.3,1.11273881]
[1748021846174,1.11705018,668.84,668.3,1.11273881]
[1748021846673,1.865,668.87,668.32,1.11273881]
[1748021846875,1.07317077,668.86,668.32,1.11273881]
[1748021847076,1.07317077,668.85,668.32,1.11273881]
[1748021847279,1.865,668.87,668.32,1.11273881]
[1748021847473,1.07314872,668.86,668.32,1.11273881]
[1748021847672,1.07314872,668.85,668.32,1.11273881]
[1748021847877,1.865,668.87,668.32,1.11273881]
[1748021847878,1.11705018,668.89,668.32,1.11273881]
[1748021848074,1.07317532,668.88,668.32,1.11273881]
[1748021848378,1.07317532,668.87,668.32,1.11273881]
[1748021848677,1.07317532,668.86,668.32,1.11273881]
[1748021848878,1.11705018,668.89,668.32,1.11273881]
[1748021849177,1.07314792,668.88,668.32,1.11273881]
[1748021849379,1.07314792,668.87,668.34,1.11273881]
[1748021849579,1.07314792,668.86,668.34,1.11273881]
[1748021849782,1.11705018,668.95,668.34,1.11273881]
[1748021849975,1.54824912,668.94,668.34,1.11273881]
[1748021850173,1.54824912,668.93,668.34,1.11273881]
[1748021850378,1.54824312,668.92,668.34,1.11273881]
[1748021850677,1.54824312,668.91,668.34,1.11273881]
[1748021850876,1.07314341,668.9,668.34,1.11273881]
[1748021851077,1.07314341,668.89,668.34,1.11273881]
[1748021851280,1.07314341,668.88,668.34,1.11273881]
[1748021851480,1.07314341,668.87,668.34,1.11273881]
[1748021851679,1.063,668.92,668.34,1.11273881]
[1748021851878,1.47,668.86,668.34,1.11273881]
[1748021854877,1.47,668.86,668.33,1.11273881]
[1748021857589,1.47,668.86,668.34,1.11273881]
[1748021859891,1.47,668.86,668.35,1.11273881]
[1748021862692,1.47,668.86,668.36,1.11273881]
[1748021865087,1.07371843,668.85,668.36,1.11273881]
[1748021865288,1.47,668.86,668.37,1.11273881]
[1748021865485,1.07371843,668.85,668.37,1.11273881]
[1748021865685,1.47,668.86,668.37,1.11273881]
[1748021866088,1.0738201,668.85,668.37,1.11273881]
[1748021866294,1.47,668.86,668.37,1.11273881]
[1748021866595,1.0738201,668.85,668.37,1.11273881]
[1748021866893,1.47,668.86,668.37,1.11273881]
[1748021867193,1.07383835,668.85,668.37,1.11273881]
[1748021867393,1.47,668.86,668.37,1.11273881]
[1748021867587,1.07394155,668.85,668.37,1.11273881]
[1748021867789,1.47,668.86,668.39,1.11273881]
[1748021867990,1.07394315,668.85,668.39,1.11273881]
[1748021868194,1.47,668.86,668.39,1.11273881]
[1748021868393,1.07404219,668.85,668.39,1.11273881]
[1748021868595,1.47,668.86,668.39,1.11273881]
[1748021868792,1.07405502,668.85,668.39,1.11273881]
[1748021868990,1.47,668.86,668.39,1.11273881]
[1748021869194,1.07405502,668.85,668.39,1.11273881]
[1748021869492,1.47,668.86,668.39,1.11273881]
[1748021869896,1.0741419,668.85,668.39,1.11273881]
[1748021870092,1.07422567,668.84,668.4,1.11273881]
[1748021870295,1.47,668.86,668.4,1.11273881]
[1748021870495,1.07424108,668.85,668.4,1.11273881]
[1748021870792,1.07424108,668.84,668.4,1.11273881]
[1748021870992,1.47,668.86,668.4,1.11273881]
[1748021871195,1.0742402,668.85,668.4,1.11273881]
[1748021871399,1.0742402,668.84,668.4,1.11273881]
[1748021871595,1.47,668.86,668.4,1.11273881]
[1748021871799,1.07429585,668.85,668.4,1.11273881]
[1748021872001,1.07429585,668.84,668.4,1.11273881]
[1748021872196,1.772,668.85,668.4,1.11273881]
[1748021872498,1.07431582,668.84,668.4,1.11273881]
[1748021872702,1.772,668.85,668.39,1.11273881]
[1748021872902,1.07432935,668.84,668.39,1.11273881]
[1748021873102,1.772,668.85,668.39,1.11273881]
[1748021873304,1.07434703,668.84,668.39,1.11273881]
[1748021873503,1.772,668.85,668.39,1.11273881]
[1748021873701,1.07436011,668.84,668.39,1.11273881]
[1748021873900,1.772,668.85,668.39,1.11273881]
[1748021874099,1.07436311,668.84,668.39,1.11273881]
[1748021874298,1.772,668.85,668.39,1.11273881]
[1748021874503,1.07438289,668.84,668.39,1.11273881]
[1748021874701,1.772,668.85,668.39,1.11273881]
[1748021874905,1.07439375,668.84,668.39,1.11273881]
[1748021875106,1.772,668.85,668.39,1.11273881]
[1748021875407,1.07441773,668.84,668.39,1.11273881]
[1748021875706,1.772,668.85,668.4,1.11273881]
[1748021875906,1.07442979,668.84,668.4,1.11273881]
[1748021876107,1.772,668.85,668.4,1.11273881]
[1748021876407,2.24045544,668.84,668.4,1.11273881]
[1748021876601,1.166,668.84,668.4,1.11273881]
[1748021877506,1.166,668.84,668.41,1.11273881]
[1748021880108,1.166,668.84,668.42,1.11273881]
[1748021885209,1.166,668.84,668.43,1.11273881]